[Event "*** Titled Tuesday Blitz"]
[Site "Chess.com"]
[Date "2020.12.01"]
[Round "6"]
[White "Micki-taryan"]
[Black "youngKID"]
[Result "1-0"]
[WhiteElo "3016"]
[BlackElo "2857"]
[TimeControl "180+1"]
[EndTime "11:07:50 PST"]
[Termination "Micki-taryan won by resignation"]

1. Nf3 {[%clk 0:03:00.9]} 1... Nf6 {[%clk 0:02:59.9]} 2. d4 {[%clk 0:03:01.1]}
2... d5 {[%clk 0:02:59.2]} 3. c4 {[%clk 0:02:59.6]} 3... e6 {[%clk 0:02:59.5]}
4. Nc3 {[%clk 0:02:59.6]} 4... Be7 {[%clk 0:02:59]} 5. Bg5 {[%clk 0:02:58]} 5...
O-O {[%clk 0:02:58.2]} 6. Qc2 {[%clk 0:02:57.5]} 6... Nbd7 {[%clk 0:02:56.2]} 7.
cxd5 {[%clk 0:02:56.9]} 7... exd5 {[%clk 0:02:55.1]} 8. e3 {[%clk 0:02:56.3]}
8... c6 {[%clk 0:02:54.4]} 9. Bd3 {[%clk 0:02:56.7]} 9... Re8 {[%clk 0:02:54.4]}
10. O-O {[%clk 0:02:56.4]} 10... Nf8 {[%clk 0:02:54.6]} 11. Rab1 {[%clk
0:02:54.8]} 11... g6 {[%clk 0:02:52]} 12. b4 {[%clk 0:02:49.2]} 12... Ne6 {[%clk
0:02:51.9]} 13. Bh4 {[%clk 0:02:46.1]} 13... a6 {[%clk 0:02:52.1]} 14. a4 {[%clk
0:02:45.4]} 14... Ng7 {[%clk 0:02:52.4]} 15. b5 {[%clk 0:02:43.5]} 15... axb5
{[%clk 0:02:52.8]} 16. axb5 {[%clk 0:02:44.4]} 16... Bf5 {[%clk 0:02:53.4]} 17.
bxc6 {[%clk 0:02:42.7]} 17... bxc6 {[%clk 0:02:53.2]} 18. Ne5 {[%clk 0:02:35.8]}
18... Rc8 {[%clk 0:02:53.3]} 19. Na4 {[%clk 0:02:25.9]} 19... Bxd3 {[%clk
0:02:33.5]} 20. Nxd3 {[%clk 0:02:23.4]} 20... Nf5 {[%clk 0:02:23.7]} 21. Bxf6
{[%clk 0:02:22.7]} 21... Bxf6 {[%clk 0:02:24.6]} 22. Rfc1 {[%clk 0:02:17.3]}
22... Bxd4 {[%clk 0:02:21.4]} 23. exd4 {[%clk 0:02:13.3]} 23... Nxd4 {[%clk
0:02:22.3]} 24. Qd1 {[%clk 0:02:08.4]} 24... Ne2+ {[%clk 0:02:22]} 25. Kh1
{[%clk 0:02:03.2]} 25... Nxc1 {[%clk 0:02:22.9]} 26. Rxc1 {[%clk 0:02:02.9]}
26... Qf6 {[%clk 0:02:21.6]} 27. Nac5 {[%clk 0:01:57.1]} 27... Re7 {[%clk
0:02:20.6]} 28. g3 {[%clk 0:01:13.2]} 28... Rce8 {[%clk 0:02:15.2]} 29. Kg2
{[%clk 0:01:08.9]} 29... h5 {[%clk 0:01:58.2]} 30. h4 {[%clk 0:01:08.7]} 30...
Qf5 {[%clk 0:01:47.9]} 31. Rb1 {[%clk 0:01:02.9]} 31... Re2 {[%clk 0:01:41.9]}
32. Rb4 {[%clk 0:00:57.7]} 32... Qf6 {[%clk 0:01:13.4]} 33. Qc1 {[%clk
0:00:47.7]} 33... Ra8 {[%clk 0:01:01.3]} 34. Rf4 {[%clk 0:00:41.4]} 34... Qa1
{[%clk 0:00:55.5]} 35. Qxa1 {[%clk 0:00:39.8]} 35... Rxa1 {[%clk 0:00:56.4]} 36.
Rf6 {[%clk 0:00:40.7]} 36... Rc2 {[%clk 0:00:42.8]} 37. Rxc6 {[%clk 0:00:34.7]}
37... Ra5 {[%clk 0:00:41]} 38. Rc7 {[%clk 0:00:25.8]} 38... d4 {[%clk
0:00:36.6]} 39. Kf3 {[%clk 0:00:22.1]} 39... Ra3 {[%clk 0:00:32.2]} 40. Ke4
{[%clk 0:00:22.2]} 40... Rac3 {[%clk 0:00:15.8]} 41. Kxd4 {[%clk 0:00:19.2]}
41... Rc4+ {[%clk 0:00:16.1]} 42. Kd5 {[%clk 0:00:19.7]} 42... R4c3 {[%clk
0:00:14.7]} 43. Rb7 {[%clk 0:00:18]} 43... Rd2 {[%clk 0:00:10.5]} 44. Ke4 {[%clk
0:00:16.2]} 44... Re2+ {[%clk 0:00:10.8]} 45. Kd4 {[%clk 0:00:15.1]} 45... Rcc2
{[%clk 0:00:09.3]} 46. Nd7 {[%clk 0:00:11.3]} 46... Rxf2 {[%clk 0:00:08.4]} 47.
Nxf2 {[%clk 0:00:10.4]} 47... Rxf2 {[%clk 0:00:09.3]} 48. Ke3 {[%clk 0:00:10.6]}
48... Rf5 {[%clk 0:00:09.8]} 49. Rb8+ {[%clk 0:00:08.6]} 49... Kg7 {[%clk
0:00:10.3]} 50. Re8 {[%clk 0:00:09.1]} 50... Rd5 {[%clk 0:00:10]} 51. Ne5 {[%clk
0:00:08.8]} 51... Ra5 {[%clk 0:00:09.6]} 52. Nd3 {[%clk 0:00:09.2]} 52... Ra4
{[%clk 0:00:09.3]} 53. Rc8 {[%clk 0:00:09]} 53... Ra7 {[%clk 0:00:09.6]} 54. Rc5
{[%clk 0:00:08.4]} 54... Re7+ {[%clk 0:00:10]} 55. Re5 {[%clk 0:00:08.9]} 55...
Rd7 {[%clk 0:00:10.5]} 56. Re4 {[%clk 0:00:09.3]} 56... Ra7 {[%clk 0:00:09.9]}
57. Rd4 {[%clk 0:00:09.6]} 57... Re7+ {[%clk 0:00:09.6]} 58. Kf3 {[%clk
0:00:10.2]} 58... Re6 {[%clk 0:00:09.9]} 59. Nf4 {[%clk 0:00:10.3]} 59... Re1
{[%clk 0:00:10]} 60. Rd7 {[%clk 0:00:10.5]} 60... Rf1+ {[%clk 0:00:09.9]} 61.
Ke2 {[%clk 0:00:11]} 61... Ra1 {[%clk 0:00:10.3]} 62. Ne6+ {[%clk 0:00:11.3]}
62... Kg8 {[%clk 0:00:08.4]} 63. Rd8+ {[%clk 0:00:11.1]} 63... Kh7 {[%clk
0:00:08.5]} 64. Ng5+ {[%clk 0:00:12]} 64... Kg7 {[%clk 0:00:08]} 65. Rd7 {[%clk
0:00:12.3]} 65... Ra2+ {[%clk 0:00:08.5]} 66. Kf1 {[%clk 0:00:12.3]} 66... Ra1+
{[%clk 0:00:08.5]} 67. Kg2 {[%clk 0:00:12.7]} 67... Ra2+ {[%clk 0:00:09]} 68.
Kf3 {[%clk 0:00:12.2]} 68... Ra3+ {[%clk 0:00:09.2]} 69. Kf4 {[%clk 0:00:12.7]}
69... Ra4+ {[%clk 0:00:09.2]} 70. Ne4 {[%clk 0:00:07.8]} 70... Ra1 {[%clk
0:00:07.6]} 71. Nd6 {[%clk 0:00:05.2]} 71... Rf1+ {[%clk 0:00:07.6]} 72. Ke3
{[%clk 0:00:05.7]} 72... Kf8 {[%clk 0:00:06.9]} 73. Ne4 {[%clk 0:00:04.9]} 73...
Kg7 {[%clk 0:00:06.4]} 74. Ke2 {[%clk 0:00:04.2]} 74... Rf5 {[%clk 0:00:06.5]}
75. Nd6 {[%clk 0:00:04.6]} 75... Re5+ {[%clk 0:00:06.6]} 76. Kf3 {[%clk
0:00:05]} 76... Ra5 {[%clk 0:00:03.7]} 77. Rxf7+ {[%clk 0:00:04.6]} 77... Kh6
{[%clk 0:00:03.7]} 78. Rb7 {[%clk 0:00:04.7]} 78... Ra3+ {[%clk 0:00:01.8]} 79.
Kf4 {[%clk 0:00:05.1]} 79... Ra4+ {[%clk 0:00:01.9]} 80. Ne4 {[%clk 0:00:05.6]}
80... Ra5 {[%clk 0:00:02.2]} 81. Rb3 {[%clk 0:00:03.6]} 81... Rf5+ {[%clk
0:00:01.9]} 82. Ke3 {[%clk 0:00:04]} 82... Rf7 {[%clk 0:00:02.5]} 83. Ng5 {[%clk
0:00:04.1]} 83... Re7+ {[%clk 0:00:02.6]} 84. Kf3 {[%clk 0:00:04.7]} 84... Re1
{[%clk 0:00:01.7]} 85. Re3 {[%clk 0:00:05.6]} 85... Rf1+ {[%clk 0:00:01.9]} 86.
Kg2 {[%clk 0:00:05.8]} 86... Ra1 {[%clk 0:00:02.5]} 87. Nf3 {[%clk 0:00:06.1]}
87... Ra2+ {[%clk 0:00:02.7]} 88. Kh3 {[%clk 0:00:06.7]} 88... Ra1 {[%clk
0:00:03.3]} 89. Re6 {[%clk 0:00:06.5]} 89... Ra2 {[%clk 0:00:01.8]} 90. Ne5
{[%clk 0:00:06.5]} 1-0

[Event "*** Titled Tuesday Blitz"]
[Site "Chess.com"]
[Date "2020.12.01"]
[Round "7"]
[White "Kotofeyca"]
[Black "Smile2005"]
[Result "1-0"]
[WhiteElo "2472"]
[BlackElo "2327"]
[TimeControl "180+1"]
[EndTime "11:09:28 PST"]
[Termination "Kotofeyca won by resignation"]

1. d4 {[%clk 0:03:00.9]} 1... Nf6 {[%clk 0:03:00.1]} 2. c4 {[%clk 0:02:59.4]}
2... g6 {[%clk 0:03:01]} 3. f3 {[%clk 0:02:59.6]} 3... Bg7 {[%clk 0:03:01.9]} 4.
e4 {[%clk 0:02:59.9]} 4... O-O {[%clk 0:03:02.8]} 5. Nc3 {[%clk 0:03:00.4]} 5...
d6 {[%clk 0:03:03.3]} 6. Be3 {[%clk 0:03:00.9]} 6... Nc6 {[%clk 0:03:03.7]} 7.
Nge2 {[%clk 0:03:01]} 7... a6 {[%clk 0:03:04]} 8. a3 {[%clk 0:03:01.6]} 8... Rb8
{[%clk 0:03:03.5]} 9. b4 {[%clk 0:03:02]} 9... b5 {[%clk 0:03:03.6]} 10. cxb5
{[%clk 0:03:02.9]} 10... axb5 {[%clk 0:03:03.8]} 11. d5 {[%clk 0:03:03.5]} 11...
Ne5 {[%clk 0:03:03.7]} 12. Nd4 {[%clk 0:03:04.1]} 12... Nc4 {[%clk 0:03:03.8]}
13. Bxc4 {[%clk 0:03:03.2]} 13... bxc4 {[%clk 0:03:04.7]} 14. Nc6 {[%clk
0:03:03.6]} 14... Qe8 {[%clk 0:02:59.9]} 15. Nxb8 {[%clk 0:03:03.4]} 15... Bh3
{[%clk 0:02:59.3]} 1-0

[Event "*** Titled Tuesday Blitz"]
[Site "Chess.com"]
[Date "2020.12.01"]
[Round "7"]
[White "AldokhinIvan"]
[Black "ChelsieMonica"]
[Result "1-0"]
[WhiteElo "2498"]
[BlackElo "2380"]
[TimeControl "180+1"]
[EndTime "11:11:15 PST"]
[Termination "AldokhinIvan won by resignation"]

1. e4 {[%clk 0:03:00.9]} 1... e5 {[%clk 0:02:58.9]} 2. Nf3 {[%clk 0:03:01]} 2...
Nc6 {[%clk 0:02:58.6]} 3. Bb5 {[%clk 0:03:01.1]} 3... Nf6 {[%clk 0:02:58.5]} 4.
O-O {[%clk 0:03:00.6]} 4... a6 {[%clk 0:02:58.9]} 5. Bxc6 {[%clk 0:02:59.8]}
5... dxc6 {[%clk 0:02:59.8]} 6. Nxe5 {[%clk 0:03:00.4]} 6... Be7 {[%clk
0:02:59.3]} 7. Nc3 {[%clk 0:02:58.4]} 7... O-O {[%clk 0:02:59.9]} 8. d4 {[%clk
0:02:51.8]} 8... h6 {[%clk 0:02:57]} 9. h3 {[%clk 0:02:49.3]} 9... c5 {[%clk
0:02:57.3]} 10. d5 {[%clk 0:02:45.3]} 10... b5 {[%clk 0:02:56]} 11. Nc6 {[%clk
0:02:44.3]} 11... Qd7 {[%clk 0:02:55.5]} 12. e5 {[%clk 0:02:38.1]} 12... Nh7
{[%clk 0:02:55]} 13. Bf4 {[%clk 0:02:26.6]} 13... b4 {[%clk 0:02:54]} 14. Ne4
{[%clk 0:02:24.1]} 14... Bb7 {[%clk 0:02:53.9]} 15. Nxe7+ {[%clk 0:02:15.7]}
15... Qxe7 {[%clk 0:02:53.5]} 16. Qg4 {[%clk 0:02:08]} 16... Kh8 {[%clk
0:02:41.1]} 17. d6 {[%clk 0:02:07.6]} 17... cxd6 {[%clk 0:02:40.9]} 18. Nxd6
{[%clk 0:02:07.3]} 18... Bd5 {[%clk 0:02:31.7]} 19. Nf5 {[%clk 0:02:01.4]} 1-0

[Event "*** Titled Tuesday Blitz"]
[Site "Chess.com"]
[Date "2020.12.01"]
[Round "7"]
[White "Gerasimenyuk_Miha"]
[Black "PavelShkapenko"]
[Result "0-1"]
[WhiteElo "2421"]
[BlackElo "2688"]
[TimeControl "180+1"]
[EndTime "11:11:20 PST"]
[Termination "PavelShkapenko won by resignation"]

1. d4 {[%clk 0:02:58.2]} 1... Nf6 {[%clk 0:02:53.7]} 2. Nf3 {[%clk 0:02:57.7]}
2... e6 {[%clk 0:02:54.1]} 3. Bg5 {[%clk 0:02:49.3]} 3... c5 {[%clk 0:02:53.5]}
4. e3 {[%clk 0:02:49.7]} 4... cxd4 {[%clk 0:02:47.1]} 5. Nc3 {[%clk 0:02:50.6]}
5... dxc3 {[%clk 0:02:46.8]} 6. bxc3 {[%clk 0:02:31.8]} 6... Qa5 {[%clk
0:02:44.6]} 7. Bd3 {[%clk 0:02:29.8]} 7... Qxc3+ {[%clk 0:02:43.7]} 8. Kf1
{[%clk 0:02:30.7]} 8... Nc6 {[%clk 0:02:41.1]} 9. Rb1 {[%clk 0:02:29.2]} 9... d5
{[%clk 0:02:40.7]} 10. h4 {[%clk 0:02:28.6]} 10... Ne4 {[%clk 0:02:39.3]} 11.
Bxe4 {[%clk 0:02:25.1]} 11... dxe4 {[%clk 0:02:38.7]} 12. Nd4 {[%clk 0:02:22.1]}
12... Nxd4 {[%clk 0:02:35]} 13. exd4 {[%clk 0:02:23]} 13... Bd6 {[%clk
0:02:28.1]} 14. d5 {[%clk 0:02:18.8]} 14... Qc4+ {[%clk 0:02:27.7]} 15. Kg1
{[%clk 0:02:18.3]} 15... Qxd5 {[%clk 0:02:24.8]} 16. Qg4 {[%clk 0:02:17.9]} 0-1

[Event "*** Titled Tuesday Blitz"]
[Site "Chess.com"]
[Date "2020.12.01"]
[Round "7"]
[White "NewBornNow"]
[Black "stoleriu"]
[Result "1-0"]
[WhiteElo "2701"]
[BlackElo "2550"]
[TimeControl "180+1"]
[EndTime "11:11:31 PST"]
[Termination "NewBornNow won by resignation"]

1. e4 {[%clk 0:03:00.4]} 1... e6 {[%clk 0:02:58.2]} 2. d4 {[%clk 0:02:59.5]}
2... d5 {[%clk 0:02:59.1]} 3. Nc3 {[%clk 0:02:59.7]} 3... Bb4 {[%clk 0:02:56.6]}
4. e5 {[%clk 0:02:59.7]} 4... c5 {[%clk 0:02:56.7]} 5. a3 {[%clk 0:02:59.6]}
5... Bxc3+ {[%clk 0:02:55.9]} 6. bxc3 {[%clk 0:03:00.5]} 6... Qc7 {[%clk
0:02:56.8]} 7. Nf3 {[%clk 0:03:00.3]} 7... Ne7 {[%clk 0:02:56.5]} 8. h4 {[%clk
0:02:58.4]} 8... b6 {[%clk 0:02:55.6]} 9. Bb5+ {[%clk 0:02:57.8]} 9... Bd7
{[%clk 0:02:54.7]} 10. Bd3 {[%clk 0:02:58.1]} 10... Nbc6 {[%clk 0:02:55.1]} 11.
h5 {[%clk 0:02:55.7]} 11... h6 {[%clk 0:02:54.2]} 12. O-O {[%clk 0:02:51.4]}
12... Na5 {[%clk 0:02:46.8]} 13. Re1 {[%clk 0:02:48.1]} 13... Ba4 {[%clk
0:02:42]} 14. Qd2 {[%clk 0:02:36.9]} 14... Rc8 {[%clk 0:02:20.5]} 15. dxc5
{[%clk 0:02:26.5]} 15... Qxc5 {[%clk 0:02:09.3]} 16. Qf4 {[%clk 0:02:22]} 16...
Qxc3 {[%clk 0:01:53.1]} 17. Qxa4+ {[%clk 0:02:19.7]} 1-0

[Event "*** Titled Tuesday Blitz"]
[Site "Chess.com"]
[Date "2020.12.01"]
[Round "7"]
[White "hleol"]
[Black "Nadtkins"]
[Result "0-1"]
[WhiteElo "2326"]
[BlackElo "2507"]
[TimeControl "180+1"]
[EndTime "11:12:11 PST"]
[Termination "Nadtkins won by resignation"]

1. d4 {[%clk 0:03:00.9]} 1... Nf6 {[%clk 0:02:59]} 2. c4 {[%clk 0:03:00.2]} 2...
d6 {[%clk 0:02:59.4]} 3. Nc3 {[%clk 0:02:58.8]} 3... e5 {[%clk 0:02:57.6]} 4.
Nf3 {[%clk 0:02:58]} 4... Nbd7 {[%clk 0:02:56.3]} 5. e4 {[%clk 0:02:57.4]} 5...
Be7 {[%clk 0:02:56.6]} 6. Be2 {[%clk 0:02:57.3]} 6... O-O {[%clk 0:02:56.9]} 7.
O-O {[%clk 0:02:57.7]} 7... c6 {[%clk 0:02:55]} 8. Be3 {[%clk 0:02:57.9]} 8...
Ng4 {[%clk 0:02:54.5]} 9. Bd2 {[%clk 0:02:55.9]} 9... Qe8 {[%clk 0:02:51.9]} 10.
h3 {[%clk 0:02:55.3]} 10... Ngf6 {[%clk 0:02:52.4]} 11. Be3 {[%clk 0:02:54.8]}
11... Bd8 {[%clk 0:02:53]} 12. dxe5 {[%clk 0:02:46.7]} 12... dxe5 {[%clk
0:02:51.7]} 13. b4 {[%clk 0:02:46.8]} 13... a5 {[%clk 0:02:49.8]} 14. a3 {[%clk
0:02:46.6]} 14... Qe7 {[%clk 0:02:48.3]} 15. c5 {[%clk 0:02:43.7]} 15... Bc7
{[%clk 0:02:46.9]} 16. Qc2 {[%clk 0:02:32.7]} 16... Re8 {[%clk 0:02:45.8]} 17.
Nh4 {[%clk 0:02:29.3]} 17... g6 {[%clk 0:02:38.1]} 18. Bg5 {[%clk 0:02:26.3]}
18... Nf8 {[%clk 0:02:34.6]} 19. Rad1 {[%clk 0:02:11.8]} 19... axb4 {[%clk
0:02:31.5]} 20. axb4 {[%clk 0:02:11.3]} 20... Ne6 {[%clk 0:02:31.2]} 21. Bh6
{[%clk 0:02:05.4]} 21... Nd4 {[%clk 0:02:26.5]} 22. Qb1 {[%clk 0:01:52.9]} 22...
Ra3 {[%clk 0:02:18.2]} 23. Rxd4 {[%clk 0:01:35.5]} 23... exd4 {[%clk 0:02:17]}
24. Nd1 {[%clk 0:01:36.1]} 24... Qxe4 {[%clk 0:02:14.4]} 25. Qxe4 {[%clk
0:01:33.7]} 25... Rxe4 {[%clk 0:02:14]} 0-1

[Event "*** Titled Tuesday Blitz"]
[Site "Chess.com"]
[Date "2020.12.01"]
[Round "7"]
[White "Vojtap"]
[Black "Omk124"]
[Result "1-0"]
[WhiteElo "2141"]
[BlackElo "2311"]
[TimeControl "180+1"]
[EndTime "11:12:21 PST"]
[Termination "Vojtap won by resignation"]

1. e4 {[%clk 0:03:00.9]} 1... c5 {[%clk 0:02:58.3]} 2. Nf3 {[%clk 0:03:00.8]}
2... d6 {[%clk 0:02:58.7]} 3. d4 {[%clk 0:03:01.7]} 3... cxd4 {[%clk 0:02:59.3]}
4. Nxd4 {[%clk 0:03:02.5]} 4... Nf6 {[%clk 0:02:59.9]} 5. Nc3 {[%clk 0:03:03.2]}
5... a6 {[%clk 0:03:00.5]} 6. Bg5 {[%clk 0:03:02.3]} 6... e6 {[%clk 0:02:59.1]}
7. f4 {[%clk 0:03:02.6]} 7... h6 {[%clk 0:02:58.4]} 8. Bh4 {[%clk 0:03:01]} 8...
Nbd7 {[%clk 0:02:55.3]} 9. Qf3 {[%clk 0:03:00.1]} 9... Be7 {[%clk 0:02:55.3]}
10. O-O-O {[%clk 0:02:58.9]} 10... Qc7 {[%clk 0:02:55.1]} 11. g4 {[%clk
0:02:53.2]} 11... g5 {[%clk 0:02:53.7]} 12. fxg5 {[%clk 0:02:49.1]} 12... Ne5
{[%clk 0:02:53.7]} 13. Qg3 {[%clk 0:02:40.2]} 13... Nfxg4 {[%clk 0:02:45.4]} 14.
gxh6 {[%clk 0:02:38.5]} 14... Bxh4 {[%clk 0:02:26.7]} 15. Qxh4 {[%clk
0:02:39.4]} 15... Rxh6 {[%clk 0:02:26.9]} 16. Qg5 {[%clk 0:02:20.8]} 16... Rg6
{[%clk 0:02:25.1]} 17. Qh4 {[%clk 0:02:20.8]} 17... Rg7 {[%clk 0:02:23.1]} 18.
Qh8+ {[%clk 0:02:19.7]} 18... Ke7 {[%clk 0:01:46.1]} 19. Qxg7 {[%clk 0:02:17.9]}
19... Nf2 {[%clk 0:01:46.3]} 20. Nf5+ {[%clk 0:02:17.1]} 20... Kd7 {[%clk
0:01:42.9]} 21. Rxd6+ {[%clk 0:02:16.6]} 21... Qxd6 {[%clk 0:01:41.1]} 22. Nxd6
{[%clk 0:02:17.5]} 22... Kxd6 {[%clk 0:01:41.8]} 23. Qf8+ {[%clk 0:02:14.4]}
23... Kc7 {[%clk 0:01:40.2]} 24. Be2 {[%clk 0:02:00.8]} 1-0

[Event "*** Titled Tuesday Blitz"]
[Site "Chess.com"]
[Date "2020.12.01"]
[Round "7"]
[White "GMaka"]
[Black "Marianov_Podstavnikov"]
[Result "1-0"]
[WhiteElo "2439"]
[BlackElo "2260"]
[TimeControl "180+1"]
[EndTime "11:12:26 PST"]
[Termination "GMaka won by resignation"]

1. Nf3 {[%clk 0:02:59.9]} 1... Nf6 {[%clk 0:02:47.6]} 2. c4 {[%clk 0:02:59.6]}
2... e6 {[%clk 0:02:45.2]} 3. Nc3 {[%clk 0:02:59.2]} 3... d5 {[%clk 0:02:44.6]}
4. d4 {[%clk 0:02:58]} 4... dxc4 {[%clk 0:02:43.8]} 5. e4 {[%clk 0:02:57.6]}
5... Bb4 {[%clk 0:02:42.9]} 6. e5 {[%clk 0:02:54.2]} 6... Nd5 {[%clk 0:02:35.2]}
7. Bd2 {[%clk 0:02:53.8]} 7... Bxc3 {[%clk 0:02:34.2]} 8. bxc3 {[%clk 0:02:53]}
8... b5 {[%clk 0:02:32.6]} 9. Be2 {[%clk 0:02:41.7]} 9... Bb7 {[%clk 0:02:31]}
10. O-O {[%clk 0:02:41.2]} 10... O-O {[%clk 0:02:30.9]} 11. Qc2 {[%clk
0:02:37.8]} 11... Nd7 {[%clk 0:02:30.1]} 12. Ng5 {[%clk 0:02:37.9]} 12... g6
{[%clk 0:02:23.2]} 13. Bf3 {[%clk 0:02:34.6]} 13... c5 {[%clk 0:02:17.9]} 14.
Ne4 {[%clk 0:02:25.7]} 14... cxd4 {[%clk 0:02:12.3]} 15. cxd4 {[%clk 0:02:26.6]}
15... f5 {[%clk 0:02:07.1]} 16. Nd6 {[%clk 0:02:22.9]} 16... Bc6 {[%clk
0:02:03]} 17. Bh6 {[%clk 0:02:22]} 17... Qh4 {[%clk 0:01:45.5]} 18. Bxf8 {[%clk
0:02:19.4]} 18... Rxf8 {[%clk 0:01:46.4]} 19. Bxd5 {[%clk 0:02:11.2]} 19... Bxd5
{[%clk 0:01:45.6]} 20. Nxb5 {[%clk 0:02:11]} 20... f4 {[%clk 0:01:40.9]} 21. f3
{[%clk 0:02:09.6]} 21... g5 {[%clk 0:01:38.4]} 22. Nc7 {[%clk 0:02:08.8]} 22...
Bc6 {[%clk 0:01:33.7]} 23. Nxe6 {[%clk 0:02:08.1]} 23... Re8 {[%clk 0:01:34.2]}
24. Qf5 {[%clk 0:02:05.3]} 24... h6 {[%clk 0:01:26.9]} 25. Qg6+ {[%clk
0:02:03.8]} 1-0

[Event "*** Titled Tuesday Blitz"]
[Site "Chess.com"]
[Date "2020.12.01"]
[Round "7"]
[White "Chuchofrio1"]
[Black "niki_2003"]
[Result "1-0"]
[WhiteElo "2443"]
[BlackElo "2015"]
[TimeControl "180+1"]
[EndTime "11:12:36 PST"]
[Termination "Chuchofrio1 won by resignation"]

1. e4 {[%clk 0:03:00.9]} 1... c5 {[%clk 0:02:58.2]} 2. Nc3 {[%clk 0:02:58.2]}
2... a6 {[%clk 0:02:54.9]} 3. f4 {[%clk 0:02:57.7]} 3... b5 {[%clk 0:02:54.7]}
4. Nf3 {[%clk 0:02:58.6]} 4... Bb7 {[%clk 0:02:54.6]} 5. d3 {[%clk 0:02:59.1]}
5... e6 {[%clk 0:02:54.1]} 6. g3 {[%clk 0:02:59.5]} 6... d5 {[%clk 0:02:53.4]}
7. e5 {[%clk 0:02:55.9]} 7... h5 {[%clk 0:02:50.8]} 8. Bg2 {[%clk 0:02:55]} 8...
Nh6 {[%clk 0:02:51.1]} 9. O-O {[%clk 0:02:54.6]} 9... Nf5 {[%clk 0:02:50.7]} 10.
Ne2 {[%clk 0:02:51.3]} 10... Nc6 {[%clk 0:02:48.1]} 11. c3 {[%clk 0:02:50.6]}
11... d4 {[%clk 0:02:46.7]} 12. cxd4 {[%clk 0:02:49.8]} 12... cxd4 {[%clk
0:02:46]} 13. a4 {[%clk 0:02:42.9]} 13... b4 {[%clk 0:02:41.4]} 14. b3 {[%clk
0:02:38.3]} 14... a5 {[%clk 0:02:40.9]} 15. Bb2 {[%clk 0:02:36.3]} 15... Bc5
{[%clk 0:02:41.4]} 16. Rc1 {[%clk 0:02:35]} 16... Ba7 {[%clk 0:02:37.5]} 17. Rc4
{[%clk 0:02:33.9]} 17... Ne3 {[%clk 0:02:31.5]} 18. Qc1 {[%clk 0:02:28.8]} 18...
Nxc4 {[%clk 0:02:30.4]} 19. Qxc4 {[%clk 0:02:29.7]} 19... Rc8 {[%clk 0:02:28]}
20. Qb5 {[%clk 0:02:20]} 20... Qb6 {[%clk 0:02:25.6]} 21. Nfxd4 {[%clk
0:01:51.1]} 21... Qxb5 {[%clk 0:02:10.1]} 22. axb5 {[%clk 0:01:52]} 22... Nxd4
{[%clk 0:02:09.5]} 23. Bxd4 {[%clk 0:01:52.9]} 23... Bxd4+ {[%clk 0:02:07.6]}
24. Nxd4 {[%clk 0:01:53.7]} 24... Bxg2 {[%clk 0:02:08]} 25. Kxg2 {[%clk
0:01:54.5]} 25... O-O {[%clk 0:02:07.9]} 26. Kf3 {[%clk 0:01:54]} 26... Rfd8
{[%clk 0:02:04.9]} 27. Ke4 {[%clk 0:01:53.9]} 27... Rd5 {[%clk 0:02:05.2]} 28.
Rd1 {[%clk 0:01:46.2]} 28... Rcd8 {[%clk 0:02:05.2]} 29. Nc6 {[%clk 0:01:44.4]}
29... Rc8 {[%clk 0:02:03]} 30. Ne7+ {[%clk 0:01:44.3]} 30... Kf8 {[%clk
0:02:00.6]} 31. Nxc8 {[%clk 0:01:45.2]} 31... Rxb5 {[%clk 0:02:01.1]} 32. Nd6
{[%clk 0:01:44.4]} 32... Rc5 {[%clk 0:02:00.7]} 33. Nc4 {[%clk 0:01:43.8]} 33...
Ke7 {[%clk 0:01:59.5]} 34. d4 {[%clk 0:01:44.1]} 34... Rc8 {[%clk 0:01:57.6]}
35. d5 {[%clk 0:01:45]} 1-0

[Event "*** Titled Tuesday Blitz"]
[Site "Chess.com"]
[Date "2020.12.01"]
[Round "7"]
[White "Legendinunknown"]
[Black "IMVoja"]
[Result "1-0"]
[WhiteElo "2668"]
[BlackElo "2485"]
[TimeControl "180+1"]
[EndTime "11:12:37 PST"]
[Termination "Legendinunknown won by resignation"]

1. d4 {[%clk 0:03:00.9]} 1... e6 {[%clk 0:02:58.6]} 2. c4 {[%clk 0:03:00]} 2...
f5 {[%clk 0:02:57.9]} 3. g3 {[%clk 0:02:58.9]} 3... Nf6 {[%clk 0:02:57.1]} 4.
Bg2 {[%clk 0:02:59.8]} 4... d5 {[%clk 0:02:57.3]} 5. Nf3 {[%clk 0:03:00.1]} 5...
c6 {[%clk 0:02:57.7]} 6. b3 {[%clk 0:03:00.1]} 6... Bd6 {[%clk 0:02:56]} 7. O-O
{[%clk 0:02:59.9]} 7... Qe7 {[%clk 0:02:56.2]} 8. a4 {[%clk 0:02:59.6]} 8... a5
{[%clk 0:02:56]} 9. Ba3 {[%clk 0:02:59.3]} 9... Bxa3 {[%clk 0:02:54.7]} 10. Nxa3
{[%clk 0:03:00.2]} 10... Na6 {[%clk 0:02:54.3]} 11. Nc2 {[%clk 0:02:59.1]} 11...
O-O {[%clk 0:02:53.5]} 12. Ne5 {[%clk 0:02:59]} 12... Bd7 {[%clk 0:02:50.1]} 13.
Qd2 {[%clk 0:02:57.3]} 13... b6 {[%clk 0:02:39.6]} 14. f3 {[%clk 0:02:56.7]}
14... Rac8 {[%clk 0:02:33.9]} 15. Rae1 {[%clk 0:02:55.5]} 15... c5 {[%clk
0:02:29.8]} 16. e4 {[%clk 0:02:54.9]} 16... fxe4 {[%clk 0:02:20.1]} 17. fxe4
{[%clk 0:02:53.6]} 17... cxd4 {[%clk 0:02:11.3]} 18. exd5 {[%clk 0:02:47.9]}
18... exd5 {[%clk 0:01:42.5]} 19. Ng6 {[%clk 0:02:45]} 19... Qc5 {[%clk
0:01:42.5]} 20. Nxf8 {[%clk 0:02:40.8]} 20... d3+ {[%clk 0:01:41.5]} 21. Kh1
{[%clk 0:02:39.5]} 21... Rxf8 {[%clk 0:01:34.5]} 22. Qxd3 {[%clk 0:02:23.8]}
22... Bc6 {[%clk 0:01:23.8]} 23. cxd5 {[%clk 0:02:19.7]} 23... Bxd5 {[%clk
0:01:23]} 24. Bxd5+ {[%clk 0:02:18.2]} 24... Nxd5 {[%clk 0:01:22.2]} 25. Rxf8+
{[%clk 0:02:16.3]} 25... Kxf8 {[%clk 0:01:19.7]} 26. Qxa6 {[%clk 0:02:09]} 26...
Qxc2 {[%clk 0:01:16.5]} 27. Qa8+ {[%clk 0:02:08.1]} 1-0